fUST/lending_fUST_20250525
["ID","MTS","AMOUNT","RATE_DAILY","PERIOD"]
[362230211,1748113846854,-587.25,0.00024383,2]
[362230212,1748113846863,-430.0,0.00024383,2]
[362230214,1748113846873,-463.08,0.00024383,2]
[362230216,1748113846883,-430.0,0.00024383,2]
[362230218,1748113846892,-1798.22,0.00024383,2]
[362230220,1748113846902,-430.0,0.00024383,2]
[362230221,1748113846915,-743.54,0.00024383,2]
[362230223,1748113846925,-3605.52,0.00024383,2]
[362230225,1748113846934,-1096.56,0.00024383,2]
[362230227,1748113846944,-430.0,0.00024383,2]
[362230229,1748113846953,-441.47254631,0.00024383,2]
[362230230,1748113846963,-430.0,0.00024383,2]
[362230232,1748113846972,-430.0,0.00024383,2]
[362230234,1748113846982,-484.85,0.00024383,2]
[362230236,1748113846992,-1182.72,0.00024383,2]
[362230238,1748113847002,-430.0,0.00024383,2]
[362230239,1748113847011,-545.47,0.00024383,2]
[362230241,1748113847020,-473.39,0.00024383,2]
[362230243,1748113847029,-430.0,0.00024383,2]
[362230245,1748113847039,-1092.71,0.00024383,2]
[362230247,1748113847049,-430.0,0.00024383,2]
[362230248,1748113847058,-907.75,0.00024383,2]
[362230250,1748113847067,-430.0,0.00024383,2]
[362230252,1748113847077,-430.0,0.00024383,2]
[362230254,1748113847086,-609.96,0.00024383,2]
[362230256,1748113847095,-438.89,0.00024383,2]
[362230257,1748113847104,-902.63,0.00024383,2]
[362230259,1748113847114,-500.0,0.00024383,2]
[362230261,1748113847123,-430.0,0.00024383,2]
[362230263,1748113847132,-937.52,0.00024383,2]
[362230265,1748113847142,-2450.26,0.00024383,2]
[362230267,1748113847150,-1723.13,0.00024383,2]
[362230268,1748113847160,-430.0,0.00024383,2]
[362230270,1748113847169,-538.32,0.00024383,2]
[362230272,1748113847178,-430.0,0.00024383,2]
[362230274,1748113847188,-430.0,0.00024383,2]
[362230276,1748113847197,-549.89,0.00024383,2]
[362230277,1748113847207,-5005.47,0.00024383,2]
[362230279,1748113847216,-931.12,0.00024383,2]
[362230281,1748113847226,-1742.65,0.00024383,2]
[362230283,1748113847235,-430.0,0.00024383,2]
[362230285,1748113847246,-1730.66,0.00024383,2]
[362230286,1748113847257,-704.42,0.00024383,2]
[362230288,1748113847268,-2616.31,0.00024383,2]
[362230290,1748113847277,-160.49780129,0.00024438,2]
[362230292,1748113847286,-160.49780129,0.00024438,2]
[362230294,1748113847295,-176.704642,0.000245,30]
[362230296,1748113847305,-151.839752,0.000245,30]
[362230297,1748113847314,-900.166603,0.000245,2]
[362230299,1748113847323,-3000.0,0.000246,2]
[362230301,1748113847333,-3000.0,0.0002461,2]
[362230303,1748113847342,-3000.0,0.0002462,2]
[362230305,1748113847352,-3000.0,0.0002463,2]
[362230307,1748113847361,-3000.0,0.0002464,2]
[362230309,1748113847370,-3000.0,0.0002465,2]
[362230310,1748113847380,-430.0,0.00024657,2]
[362230312,1748113847389,-430.0,0.00024657,2]
[362230314,1748113847399,-430.0,0.00024657,2]
[362230316,1748113847408,-430.0,0.00024657,2]
[362230318,1748113847417,-430.0,0.00024657,2]
[362230319,1748113847427,-430.0,0.00024657,2]
[362230321,1748113847437,-430.0,0.00024657,2]
[362230323,1748113847446,-430.0,0.00024657,2]
[362230325,1748113847455,-430.0,0.00024657,2]
[362230327,1748113847464,-430.0,0.00024657,2]
[362230329,1748113847474,-500.0,0.00024657,2]
[362230330,1748113847483,-430.0,0.00024657,2]
[362230332,1748113847493,-430.0,0.00024657,2]
[362230334,1748113847503,-905.16,0.00024657,2]
[362230336,1748113847513,-430.0,0.00024657,2]
[362230338,1748113847523,-882.96,0.00024657,2]
[362230340,1748113847532,-617.59,0.00024657,2]
[362230342,1748113847541,-430.0,0.00024657,2]
[362230343,1748113847550,-812.65,0.00024657,2]
[362230345,1748113847560,-655.04,0.00024657,2]
[362230347,1748113847571,-510.22,0.00024657,2]
[362230349,1748113847581,-5414.04,0.00024657,2]
[362230351,1748113847590,-587.25,0.00024657,2]
[362230352,1748113847599,-430.0,0.00024657,2]
[362230354,1748113847608,-463.08,0.00024657,2]
[362230356,1748113847617,-430.0,0.00024657,2]
[362230358,1748113847626,-1798.22,0.00024657,2]
[362230360,1748113847637,-430.0,0.00024657,2]
[362230362,1748113847647,-743.54,0.00024657,2]
[362230364,1748113847656,-3605.52,0.00024657,2]
[362230365,1748113847665,-1096.56,0.00024657,2]
[362230367,1748113847675,-430.0,0.00024657,2]
[362230369,1748113847684,-430.0,0.00024657,2]
[362230371,1748113847694,-430.0,0.00024657,2]
[362230373,1748113847703,-484.85,0.00024657,2]
[362230375,1748113847712,-1182.72,0.00024657,2]
[362230376,1748113847721,-430.0,0.00024657,2]
[362230378,1748113847731,-545.47,0.00024657,2]
[362230380,1748113847741,-473.39,0.00024657,2]
[362230382,1748113847750,-430.0,0.00024657,2]
[362230384,1748113847760,-1092.71,0.00024657,2]
[362230386,1748113847770,-430.0,0.00024657,2]
[362230387,1748113847779,-907.75,0.00024657,2]
[362230389,1748113847788,-430.0,0.00024657,2]
[362230391,1748113847798,-430.0,0.00024657,2]
[362230393,1748113847807,-609.96,0.00024657,2]
[362230395,1748113847816,-438.89,0.00024657,2]
[362230396,1748113847826,-902.63,0.00024657,2]
[362230398,1748113847835,-643.2719483,0.00024657,2]
[362230400,1748113847845,-430.0,0.00024657,2]
[362230402,1748113847855,-937.52,0.00024657,2]
[362230404,1748113847865,-2450.26,0.00024657,2]
[362230406,1748113847874,-1723.13,0.00024657,2]
[362230407,1748113847885,-440.67301417,0.00024657,2]
[362230409,1748113847895,-430.0,0.00024657,2]
[362230411,1748113847906,-430.0,0.00024657,2]
[362230413,1748113847916,-538.32,0.00024657,2]
[362230414,1748113847925,-549.89,0.00024657,2]
[362230416,1748113847935,-5005.47,0.00024657,2]
[362230418,1748113847945,-931.12,0.00024657,2]
[362230420,1748113847954,-1742.65,0.00024657,2]
[362230422,1748113847963,-430.0,0.00024657,2]
[362230424,1748113847973,-1787.88,0.00024657,4]
[362230425,1748113847982,-1730.66,0.00024657,2]
[362230427,1748113847992,-704.42,0.00024657,2]
[362230429,1748113848001,-2616.31,0.00024657,2]
[362230431,1748113848011,-3000.0,0.0002466,2]
[362230433,1748113848020,-3000.0,0.0002467,2]
[362230435,1748113848029,-3000.0,0.0002468,2]
[362230437,1748113848038,-3000.0,0.0002469,2]
[362230438,1748113848048,-3000.0,0.000247,2]
[362230440,1748113848058,-3000.0,0.0002471,2]
[362230442,1748113848067,-3000.0,0.0002472,2]
[362230444,1748113848078,-3000.0,0.0002473,2]
[362230446,1748113848088,-3000.0,0.0002474,2]
[362230448,1748113848098,-3000.0,0.0002475,2]
[362230450,1748113848107,-3000.0,0.0002476,2]
[362230452,1748113848117,-2500.0,0.00024766,2]
[362230453,1748113848127,-3000.0,0.0002477,2]
[362230455,1748113848136,-3000.0,0.0002478,2]
[362230457,1748113848146,-3000.0,0.0002479,2]
[362230459,1748113848155,-500.0,0.0002479,2]
[362230461,1748113848165,-3000.0,0.000248,2]
[362230462,1748113848174,-3000.0,0.0002481,2]
[362230463,1748113848183,-3000.0,0.0002482,2]
[362230464,1748113848192,-3000.0,0.0002483,2]
[362230465,1748113848201,-3000.0,0.0002484,2]
[362230466,1748113848210,-220.998646,0.00024847,2]
[362230467,1748113848219,-3000.0,0.0002485,2]
[362230468,1748113848228,-3000.0,0.0002486,2]
[362230469,1748113848238,-3000.0,0.0002487,2]
[362230470,1748113848247,-500.0,0.00024873,2]
[362230471,1748113848257,-500.0,0.00024873,2]
[362230472,1748113848266,-500.0,0.00024873,2]
[362230473,1748113848275,-500.0,0.00024873,2]
[362230474,1748113848285,-500.0,0.00024873,2]
[362230475,1748113848295,-500.0,0.00024873,2]
[362230476,1748113848304,-351.80132276,0.00024873,2]
[362230477,1748113848313,-531.46102362,0.00024873,2]
[362230478,1748113848322,-500.0,0.00024873,2]
[362230479,1748113848331,-500.0,0.00024873,2]
[362230480,1748113848340,-500.0,0.00024873,2]
[362230481,1748113848349,-500.0,0.00024873,2]
[362230482,1748113848358,-302.70903956,0.00024873,2]
[362230483,1748113848366,-500.0,0.00024873,2]
[362230484,1748113848457,-500.0,0.00024873,2]
[362230485,1748113848473,-500.35311001,0.00024873,2]
[362230486,1748113848483,-500.0,0.00024873,2]
[362230487,1748113848492,-500.0,0.00024873,2]
[362230488,1748113848501,-500.0,0.00024873,2]
[362230489,1748113848511,-500.0,0.00024873,2]
[362230490,1748113848520,-500.0,0.00024873,2]
[362230491,1748113848529,-500.0,0.00024873,2]
[362230492,1748113848538,-500.0,0.00024873,2]
[362230493,1748113848547,-500.0,0.00024873,2]
[362230494,1748113848556,-500.0,0.00024873,2]
[362230495,1748113848566,-500.0,0.00024873,2]
[362230496,1748113848575,-500.0,0.00024873,2]
[362230498,1748113848584,-527.57336724,0.00024873,2]
[362230499,1748113848594,-500.0,0.00024873,2]
[362230501,1748113848604,-418.87978514,0.00024873,2]
[362230503,1748113848613,-370.93978668,0.00024873,2]
[362230505,1748113848623,-500.0,0.00024873,2]
[362230507,1748113848633,-500.0,0.00024873,2]
[362230509,1748113848644,-500.0,0.00024873,2]
[362230511,1748113848653,-500.0,0.00024873,2]
[362230513,1748113848662,-500.0,0.00024873,2]
[362230515,1748113848672,-500.0,0.00024873,2]
[362230517,1748113848682,-500.0,0.00024873,2]
[362230519,1748113848691,-536.86581622,0.00024873,2]
[362230520,1748113848700,-500.0,0.00024873,2]
[362230522,1748113848710,-500.0,0.00024873,2]
[362230524,1748113848720,-346.3124846,0.00024873,2]
[362230526,1748113848730,-500.0,0.00024873,2]
[362230528,1748113848739,-500.0,0.00024873,2]
[362230530,1748113848749,-170.69408631,0.00024873,2]
[362230532,1748113848758,-600.0,0.00024873,2]
[362230534,1748113848768,-500.65293061,0.00024873,2]
[362230536,1748113848778,-500.0,0.00024873,2]
[362230538,1748113848787,-500.0,0.00024873,2]
[362230540,1748113848797,-500.0,0.00024873,2]
[362230542,1748113848808,-500.55131905,0.00024873,2]
[362230544,1748113848817,-500.0,0.00024873,2]
[362230546,1748113848827,-500.0,0.00024873,2]
[362230548,1748113848837,-500.0,0.00024873,2]
[362230550,1748113848846,-304.83276603,0.00024873,2]
[362230552,1748113848856,-500.0,0.00024873,2]
[362230555,1748113848867,-535.25322752,0.00024873,2]
[362230556,1748113848876,-500.0,0.00024873,2]
[362230558,1748113848885,-500.0,0.00024873,2]
[362230560,1748113848897,-151.0,0.00024873,2]
[362230562,1748113848907,-3000.0,0.0002488,2]
[362230564,1748113848918,-3000.0,0.0002489,2]
[362230566,1748113848927,-3000.0,0.000249,2]
[362230568,1748113848937,-6283.41528678,0.000249,2]
[362230570,1748113848946,-463869.153051,0.000249,2]
[362230572,1748113848955,-500.0,0.000249,2]
[362230574,1748113848965,-168.451949,0.00024907,2]
[362230577,1748113848975,-3000.0,0.0002491,2]
[362230578,1748113848984,-3000.0,0.0002492,2]
[362230580,1748113848993,-500.0,0.00024928,2]
[362230583,1748113849004,-3000.0,0.0002493,2]
[362230585,1748113849014,-430.0,0.00024931,2]
[362230587,1748113849024,-430.0,0.00024931,2]
[362230589,1748113849033,-430.0,0.00024931,2]
[362230591,1748113849043,-430.0,0.00024931,2]
[362230593,1748113849052,-430.0,0.00024931,2]
[362230595,1748113849062,-430.0,0.00024931,2]
[362230597,1748113849072,-430.0,0.00024931,2]
[362230599,1748113849081,-430.0,0.00024931,2]
[362230601,1748113849090,-500.0,0.00024931,2]
[362230603,1748113849100,-430.0,0.00024931,2]
[362230605,1748113849109,-430.0,0.00024931,2]
[362230607,1748113849119,-905.16,0.00024931,2]
[362230609,1748113849128,-430.0,0.00024931,2]
[362230611,1748113849137,-882.96,0.00024931,2]
[362230613,1748113849147,-617.59,0.00024931,2]
[362230615,1748113849157,-430.0,0.00024931,2]
[362230617,1748113849167,-812.65,0.00024931,2]
[362230619,1748113849176,-655.04,0.00024931,2]
[362230621,1748113849185,-510.22,0.00024931,2]
[362230623,1748113849195,-5414.04,0.00024931,2]
[362230625,1748113849204,-587.25,0.00024931,2]
[362230627,1748113849213,-430.0,0.00024931,2]
[362230629,1748113849223,-463.08,0.00024931,2]
[362230631,1748113849232,-430.0,0.00024931,2]
[362230633,1748113849241,-1798.22,0.00024931,2]
[362230635,1748113849250,-430.0,0.00024931,2]
[362230637,1748113849260,-743.54,0.00024931,2]
[362230638,1748113849270,-3605.52,0.00024931,2]
[362230641,1748113849279,-1096.56,0.00024931,2]
[362230643,1748113849288,-446.04345267,0.00024931,2]
[362230645,1748113849298,-430.0,0.00024931,2]
[362230647,1748113849308,-430.0,0.00024931,2]
[362230648,1748113849316,-484.85,0.00024931,2]
[362230650,1748113849325,-1182.72,0.00024931,2]
[362230652,1748113849335,-430.0,0.00024931,2]
[362230654,1748113849344,-545.47,0.00024931,2]
[362230656,1748113849353,-473.39,0.00024931,2]
[362230658,1748113849363,-430.0,0.00024931,2]
[362230661,1748113849373,-1092.71,0.00024931,2]
[362230663,1748113849382,-430.0,0.00024931,2]
[362230665,1748113849392,-907.75,0.00024931,2]
[362230667,1748113849402,-430.0,0.00024931,2]
[362230669,1748113849411,-430.0,0.00024931,2]
[362230671,1748113849421,-609.96,0.00024931,2]
[362230673,1748113849430,-438.89,0.00024931,2]
[362230674,1748113849440,-902.63,0.00024931,2]
[362230676,1748113849449,-430.0,0.00024931,2]
[362230678,1748113849459,-937.52,0.00024931,2]
[362230681,1748113849468,-2450.26,0.00024931,2]
[362230682,1748113849478,-1723.13,0.00024931,2]
[362230684,1748113849488,-430.0,0.00024931,2]
[362230686,1748113849498,-430.0,0.00024931,2]
[362230689,1748113849507,-538.32,0.00024931,2]
[362230690,1748113849517,-549.89,0.00024931,2]
[362230692,1748113849526,-5005.47,0.00024931,2]
[362230694,1748113849535,-931.12,0.00024931,2]
[362230697,1748113849545,-1742.65,0.00024931,2]
[362230699,1748113849554,-430.0,0.00024931,2]
[362230701,1748113849563,-1730.66,0.00024931,2]
[362230702,1748113849572,-704.42,0.00024931,2]
[362230704,1748113849582,-2616.31,0.00024931,2]
[362230706,1748113849592,-3000.0,0.0002494,2]
[362230709,1748113849602,-3000.0,0.0002495,2]
[362230711,1748113849612,-348.87230739,0.00024955,2]
[362230713,1748113849621,-153.0,0.00024959,2]
[362230715,1748113849631,-3000.0,0.0002496,2]
[362230717,1748113849640,-3000.0,0.0002497,2]
[362230718,1748113849650,-500.0,0.00024973,2]
[362230720,1748113849659,-3000.0,0.0002498,2]
[362230723,1748113849669,-6283.41528671,0.00024987,2]
[362230724,1748113849679,-3000.0,0.0002499,2]
[362230726,1748113849689,-160.0,0.00024999,2]
[362230728,1748113849698,-240.0,0.00024999,2]
[362230731,1748113849710,-36955.25687855,0.00025,2]
[362230732,1748113849719,-1191.59547006,0.00025,3]
[362230734,1748113849729,-86109.38886909,0.00025,30]
[362230790,1748113850247,-300.0,0.00021916,2]
[362230792,1748113850257,-44.69144073,0.00021917,2]
[362230794,1748113850269,-551.54855927,0.00021917,2]
[362230796,1748113850278,-353.36828184,0.00021917,2]
[362230803,1748113850329,-116.63171816,0.00021917,2]
[362230805,1748113850338,-430.0,0.00021917,2]
[362230807,1748113850354,-210.17374986,0.00021917,2]
[362230809,1748113850366,-239.82625014,0.00021917,2]
[362230811,1748113850375,-430.0,0.00022191,2]
[362230813,1748113850386,-430.0,0.00022465,2]
[362230815,1748113850397,-430.0,0.00022739,2]
[362230817,1748113850407,-1774.09,0.00023013,2]
[362230819,1748113850417,-430.0,0.00023013,2]
[362230821,1748113850426,-40.66966139,0.00023287,2]
[362230838,1748113850582,-430.0,0.00021917,2]
[362230840,1748113850591,-430.0,0.00022191,2]
[362230842,1748113850601,-500.0,0.00022464,2]
[362230844,1748113850610,-252.72229901,0.00022464,2]
[362230846,1748113850620,-456.69511486,0.00022464,2]
[362230848,1748113850629,-430.0,0.00022465,2]
[362230850,1748113850639,-430.0,0.00022739,2]
[362230852,1748113850649,-430.0,0.00023013,2]
[362230854,1748113850659,-1733.42033861,0.00023287,2]
[362230856,1748113850668,-430.0,0.00023287,2]
[362230859,1748113850678,-1774.09,0.00023561,2]
[362230860,1748113850687,-430.0,0.00023561,2]
[362230862,1748113850696,-420.0,0.00023817,2]
[362230864,1748113850706,-1774.09,0.00023835,2]
[362230867,1748113850716,-430.0,0.00023835,2]
[362230869,1748113850726,-1774.09,0.00024109,2]
[362230871,1748113850735,-430.0,0.00024109,2]
[362230873,1748113850746,-1774.09,0.00024383,2]
[362230875,1748113850756,-430.0,0.00024383,2]
[362230877,1748113850766,-1774.09,0.00024657,2]
[362230879,1748113850776,-430.0,0.00024657,2]
[362230881,1748113850786,-1774.09,0.00024931,2]
[362230882,1748113850798,-430.0,0.00024931,2]
[362230884,1748113850809,-15324.17412622,0.00025,30]
[362233011,1748114141596,168.451949,0.00013699,2]
[362233050,1748115031984,-304.0,0.000175,2]
[362233051,1748115031997,-349.40133027,0.000189,2]
[362233052,1748115032013,-1472.1170742,0.000189,2]
[362233053,1748115032025,-300.0,0.00019288,2]
[362233054,1748115032038,-1148.0,0.00019288,2]
[362233055,1748115032051,-6981.65815373,0.00019289,2]
[362233057,1748115032065,-900.1571553,0.00019289,2]
[362233059,1748115032079,-20553.15567135,0.00019289,2]
[362233063,1748115032095,-14338.16821965,0.00019289,2]
[362233070,1748115032117,-17607.80909417,0.00019289,2]
[362233075,1748115032129,-443.82376955,0.00019962,2]
[362233077,1748115032141,-15050.32901162,0.0002,2]
[362233079,1748115032152,-1545.53323543,0.0002,2]
[362233081,1748115032165,-300.0,0.00020579,2]
[362233084,1748115032178,-24900.0,0.0002058,2]
[362233086,1748115032190,-443.82376955,0.00020621,2]
[362233088,1748115032202,-221.91188478,0.00020621,2]
[362233091,1748115032214,-1070.988131,0.00020706,2]
[362233093,1748115032225,-1775.7568469,0.00020871,2]
[362233095,1748115032236,-429.1542721,0.00020953,2]
[362233098,1748115032247,-100000.0,0.0002099,2]
[362233101,1748115032257,-894.64583333,0.00021424,2]
[362233104,1748115032266,-160.0,0.00021424,2]
[362233106,1748115032276,-160.0,0.00021424,2]
[362233108,1748115032286,-160.0,0.00021424,2]
[362233110,1748115032296,-212.4501065,0.00021424,2]
[362233129,1748115032305,-229.12393663,0.00021698,2]
[362233132,1748115032487,-500.0,0.00021706,2]
[362233134,1748115032497,-500.0,0.00021706,2]
[362233137,1748115032508,-500.0,0.00021706,2]
[362233139,1748115032518,-500.0,0.00021706,2]
[362233141,1748115032528,-500.0,0.00021706,2]
[362233143,1748115032537,-500.0,0.00021706,2]
[362233145,1748115032547,-500.0,0.00021706,2]
[362233147,1748115032557,-440.17219731,0.00021706,2]
[362233149,1748115032567,-295.13458631,0.00021706,2]
[362233151,1748115032577,-452.717,0.00021706,2]
[362233153,1748115032586,-1026.68191056,0.00021817,2]
[362233155,1748115032595,-160.0,0.00021916,2]
[362233157,1748115032604,-500.0,0.00021917,2]
[362233159,1748115032614,-450.0,0.00021917,2]
[362233161,1748115032625,-392.09741395,0.00021917,2]
[362233163,1748115032640,-407.06495353,0.00021917,2]
[362233165,1748115032649,-450.0,0.00021917,2]
[362233167,1748115032662,-450.0,0.00021917,2]
[362233169,1748115032671,-430.0,0.00021917,2]
[362233171,1748115032681,-450.0,0.00021917,2]
[362233173,1748115032690,-450.0,0.00021917,2]
[362233175,1748115032701,-450.0,0.00021917,2]
[362233177,1748115032711,-430.0,0.00021917,2]
[362233179,1748115032720,-430.0,0.00021917,2]
[362233181,1748115032732,-450.0,0.00021917,2]
[362233182,1748115032742,-1140.85627546,0.00021917,2]
[362233184,1748115032751,-178.56783584,0.00021917,2]
[362233185,1748115032761,-430.0,0.00021917,2]
[362233188,1748115032770,-430.0,0.00021917,2]
[362233190,1748115032780,-430.0,0.00021917,2]
[362233192,1748115032790,-430.0,0.00021917,2]
[362233194,1748115032799,-450.0,0.00021917,2]
[362233196,1748115032809,-430.0,0.00021917,2]
[362233198,1748115032819,-430.0,0.00021917,2]
[362233200,1748115032828,-450.0,0.00021917,2]
[362233201,1748115032837,-430.0,0.00021917,2]
[362233202,1748115032847,-430.0,0.00021917,2]
[362233203,1748115032856,-450.0,0.00021917,2]
[362233204,1748115032866,-245.56225173,0.00021917,2]
[362233206,1748115032875,-430.0,0.00021917,2]
[362233208,1748115032886,-430.0,0.00021917,2]
[362233209,1748115032895,-450.0,0.00021917,2]
[362233212,1748115032905,-430.0,0.00021917,2]
[362233214,1748115032915,-450.0,0.00021917,2]
[362233215,1748115032924,-430.0,0.00021917,2]
[362233217,1748115032934,-430.0,0.00021917,2]
[362233219,1748115032944,-430.0,0.00021917,2]
[362233221,1748115032954,-430.0,0.00021917,2]
[362233223,1748115032964,-450.0,0.00021917,2]
[362233226,1748115032974,-430.0,0.00021917,2]
[362233227,1748115032984,-450.0,0.00021917,2]
[362233230,1748115032994,-430.0,0.00021917,2]
[362233232,1748115033004,-430.0,0.00021917,2]
[362233233,1748115033014,-430.0,0.00021917,2]
[362233235,1748115033024,-305.53511976,0.00021917,2]
[362233237,1748115033034,-430.0,0.00021917,2]
[362233239,1748115033044,-430.0,0.00021917,2]
[362233241,1748115033054,-430.0,0.00021917,2]
[362233244,1748115033064,-430.0,0.00021917,2]
[362233246,1748115033075,-450.0,0.00021917,2]
[362233248,1748115033085,-430.0,0.00021917,2]
[362233250,1748115033095,-430.0,0.00021917,2]
[362233252,1748115033105,-450.0,0.00021917,2]
[362233254,1748115033115,-430.0,0.00021917,2]
[362233256,1748115033125,-430.0,0.00021917,2]
[362233258,1748115033134,-430.0,0.00021917,2]
[362233260,1748115033144,-450.0,0.00021917,2]
[362233262,1748115033155,-430.0,0.00021917,2]
[362233264,1748115033165,-256.52594672,0.00021917,2]
[362233266,1748115033176,-430.0,0.00021917,2]
[362233268,1748115033187,-430.0,0.00021917,2]
[362233270,1748115033196,-430.0,0.00021917,2]
[362233272,1748115033207,-430.0,0.00021917,2]
[362233274,1748115033216,-430.0,0.00021917,2]
[362233276,1748115033226,-430.0,0.00021917,2]
[362233278,1748115033236,-430.0,0.00021917,2]
[362233280,1748115033245,-430.0,0.00021917,2]
[362233282,1748115033255,-430.0,0.00021917,2]
[362233284,1748115033265,-430.0,0.00021917,2]
[362233286,1748115033274,-430.0,0.00021917,2]
[362233288,1748115033284,-304.21445751,0.00021917,2]
[362233290,1748115033294,-450.0,0.00021917,2]
[362233292,1748115033303,-328.87543579,0.00021917,2]
[362233294,1748115033312,-506.36555966,0.00021917,2]
[362233296,1748115033323,-430.0,0.00021917,2]
[362233298,1748115033332,-430.0,0.00021917,2]
[362233300,1748115033342,-430.0,0.00021917,2]
[362233302,1748115033352,-430.0,0.00021917,2]
[362233304,1748115033362,-300.0,0.00021917,2]
[362233306,1748115033373,-301.59274398,0.00021917,2]
[362233308,1748115033382,-729.91,0.00021917,2]
[362233310,1748115033391,-646.54,0.00021917,2]
[362233312,1748115033401,-456.91,0.00021917,2]
[362233313,1748115033410,-430.0,0.00021917,2]
[362233316,1748115033428,-430.0,0.00021917,2]
[362233319,1748115033443,-461.54501572,0.00021917,2]
[362233321,1748115033454,-450.0,0.00021917,2]
[362233323,1748115033466,-430.0,0.00021917,2]
[362233325,1748115033476,-450.0,0.00021917,2]
[362233327,1748115033486,-450.0,0.00021917,2]
[362233329,1748115033496,-450.0,0.00021917,2]
[362233331,1748115033507,-450.0,0.00021917,2]
[362233333,1748115033517,-430.0,0.00021917,2]
[362233335,1748115033528,-450.0,0.00021917,2]
[362233337,1748115033538,-430.0,0.00021917,2]
[362233339,1748115033548,-450.0,0.00021917,2]
[362233341,1748115033559,-430.0,0.00021917,2]
[362233343,1748115033570,-430.0,0.00021917,2]
[362233345,1748115033581,-450.0,0.00021917,2]
[362233347,1748115033591,-450.0,0.00021917,2]
[362233350,1748115033602,-182.44597801,0.00021917,2]
[362233352,1748115033612,-450.0,0.00021917,2]
[362233354,1748115033622,-450.0,0.00021917,2]
[362233356,1748115033633,-434.24,0.00021917,2]
[362233358,1748115033642,-450.0,0.00021917,2]
[362233360,1748115033656,-450.0,0.00021917,2]
[362233362,1748115033667,-450.0,0.00021917,2]
[362233364,1748115033676,-450.0,0.00021917,2]
[362233366,1748115033686,-576.77547368,0.00021917,2]
[362233368,1748115033696,-450.0,0.00021917,2]
[362233370,1748115033707,-437.12991141,0.00021917,2]
[362233372,1748115033717,-430.0,0.00021917,2]
[362233374,1748115033728,-430.0,0.00021917,2]
[362233376,1748115033739,-453.8643203,0.00021917,2]
[362233378,1748115033749,-450.0,0.00021917,2]
[362233380,1748115033759,-301.21740877,0.00021917,2]
[362233382,1748115033768,-430.0,0.00021917,2]
[362233384,1748115033778,-472.09,0.00021917,2]
[362233386,1748115033787,-430.0,0.00021917,2]
[362233388,1748115033797,-450.0,0.00021917,2]
[362233391,1748115033807,-450.0,0.00021917,2]
[362233393,1748115033818,-430.0,0.00021917,2]
[362233395,1748115033828,-450.0,0.00021917,2]
[362233397,1748115033838,-430.0,0.00021917,2]
[362233399,1748115033848,-450.0,0.00021917,2]
[362233401,1748115033858,-450.0,0.00021917,2]
[362233403,1748115033868,-430.0,0.00021917,2]
[362233405,1748115033878,-430.0,0.00021917,2]
[362233407,1748115033889,-450.0,0.00021917,2]
[362233409,1748115033900,-283.8281304,0.00021917,2]
[362233411,1748115033909,-430.0,0.00021917,2]